bitfinex-derivatives/quotes_SOLF0:USTF0_20240910
["timestamp","ask_amount","ask_price","bid_price","bid_amount"]
[1725946408257,25.7916,133.86,133.84,3.362]
[1725946411153,25.7916,133.86,133.83,3.3621]
[1725946411453,25.7916,133.86,133.8,1.3204]
[1725946411454,31.69,133.84,133.8,1.3204]
[1725946411655,22.43,133.82,133.8,3.3629]
[1725946412243,22.43,133.82,133.75,2.7447]
[1725946412244,31.69,133.82,133.78,3.3634]
[1725946412443,31.69,133.82,133.76,9.26]
[1725946412850,35.0526,133.82,133.78,3.3634]
[1725946413054,31.69,133.82,133.78,3.3634]
[1725946413259,31.69,133.8,133.78,3.3634]
[1725946413964,31.69,133.8,133.77,3.3637]
[1725946415859,3.8249502,133.82,133.75,2.6667]
[1725946415860,22.43,133.78,133.75,2.6667]
[1725946416454,22.43,133.78,133.7,1.2758]
[1725946416455,31.69,133.78,133.7,1.2758]
[1725946416652,31.69,133.78,133.72,9.26]
[1725946416959,31.69,133.78,133.72,12.97101637]
[1725946417461,3.3638,133.77,133.73,3.3646]
[1725946417754,31.69,133.78,133.72,12.97101637]
[1725946417957,22.43,133.76,133.71,2.7118]
[1725946418148,22.43,133.76,133.73,3.3648]
[1725946418659,31.69,133.74,133.7,3.3653]
[1725946419457,35.50646847,133.74,133.7,3.3653]
[1725946419656,35.50646847,133.74,133.69,3.3658]
[1725946419853,3.3648,133.73,133.69,3.3658]
[1725946420554,38.87106847,133.74,133.69,3.3658]
[1725946420962,29.61106847,133.74,133.7,3.3654]
[1725946421156,38.87106847,133.74,133.7,3.3654]
[1725946421757,38.87106847,133.74,133.69,3.3657]
[1725946422153,35.0548,133.73,133.69,3.3657]
[1725946423662,9.26,133.74,133.68,12.0368]
[1725946423861,22.43,133.77,133.72,9.26]
[1725946424056,1.2377,133.8,133.73,9.26]
[1725946424260,10.4977,133.8,133.73,9.26]
[1725946424765,25.7933,133.79,133.75,3.3641]
[1725946425961,25.7933,133.79,133.76,3.364]
[1725946426264,22.43,133.79,133.76,3.364]
[1725946431668,25.7933,133.79,133.76,3.364]
[1725946435973,22.43,133.76,133.61,6.7355]
[1725946436162,9.26,133.72,133.66,9.26]
[1725946437175,9.26,133.72,133.68,3.3659]
[1725946437568,31.69,133.72,133.68,3.3659]
[1725946437767,31.69,133.72,133.66,9.26]
[1725946437768,3.3654,133.71,133.67,3.3661]
[1725946439369,3.82460732,133.74,133.65,3.3666]
[1725946439370,31.69,133.7,133.65,3.3666]
[1725946439870,3.3658,133.69,133.65,3.3666]
[1725946441674,35.0557,133.7,133.63,10.5804]
[1725946441880,25.7957,133.7,133.64,9.26]
[1725946442080,22.43,133.7,133.64,9.26]
[1725946442381,25.7956,133.7,133.65,3.3667]
[1725946442685,25.7956,133.7,133.66,3.3664]
[1725946446578,3.3653,133.71,133.66,9.26]
[1725946448286,3.3653,133.71,133.68,3.366]
[1725946448683,3.3653,133.71,133.66,9.26]
[1725946448883,3.3653,133.71,133.67,3.3662]
[1725946449190,22.43,133.7,133.64,9.26]
[1725946449484,22.43,133.7,133.66,3.3664]
[1725946450282,3.3658,133.69,133.66,3.3664]
[1725946450480,22.43,133.7,133.66,3.3664]
[1725946451074,25.7957,133.7,133.66,3.3664]
[1725946453278,3.3658,133.69,133.66,3.3664]
[1725946453484,3.3658,133.69,133.65,12.6267]
[1725946454089,3.3662,133.68,133.64,3.3669]
[1725946454288,3.3662,133.68,133.63,10.5804]
[1725946455287,3.3662,133.68,133.65,3.3667]
[1725946456189,3.3662,133.68,133.63,1.3204]
[1725946456190,3.3663,133.67,133.63,1.3204]
[1725946456389,31.69,133.68,133.63,1.3204]
[1725946456684,31.69,133.68,133.64,3.367]
[1725946456984,35.0563,133.68,133.64,3.367]
[1725946457188,31.69,133.68,133.63,4.6876]
[1725946458086,3.3664,133.67,133.63,4.6876]
[1725946458290,3.3664,133.67,133.64,3.367]
[1725946459191,35.0561,133.68,133.64,3.367]
[1725946462895,3.3664,133.67,133.63,4.6875]
[1725946465293,3.3664,133.67,133.64,3.367]
[1725946465985,35.0561,133.68,133.64,3.367]
[1725946469499,35.0561,133.68,133.63,1.3204]
[1725946469500,31.69,133.68,133.65,3.3668]
[1725946470195,3.3659,133.69,133.66,3.3664]
[1725946470196,22.43,133.69,133.66,3.3664]
[1725946471297,25.7958,133.69,133.66,3.3664]
[1725946473499,35.0558,133.69,133.66,3.3664]
[1725946474496,22.43,133.66,133.63,1.3204]
[1725946474704,22.43,133.65,133.63,1.3204]
[1725946475202,22.43,133.65,133.64,3.367]
[1725946475392,22.43,133.65,133.63,1.3204]
[1725946475693,22.43,133.66,133.63,4.6876]
[1725946476591,31.69,133.67,133.63,4.6876]
[1725946476993,31.69,133.67,133.64,3.367]
[1725946478100,22.43,133.68,133.63,10.5804]
[1725946478298,9.26,133.69,133.63,10.5804]
[1725946478503,31.69,133.69,133.63,10.5804]
[1725946478703,31.69,133.69,133.66,3.3664]
[1725946479903,35.0558,133.69,133.66,3.3664]
[1725946482998,31.69,133.68,133.66,3.3664]
[1725946483397,31.69,133.68,133.63,10.5804]
[1725946483398,35.0561,133.68,133.65,3.3666]
[1725946484807,31.69,133.68,133.63,1.3204]
[1725946485402,31.69,133.68,133.63,10.5804]
[1725946485901,31.69,133.68,133.66,3.3664]
[1725946486104,9.26,133.68,133.66,3.3664]
[1725946486900,31.69,133.68,133.66,3.3664]
[1725946491007,22.43,133.69,133.67,3.3663]
[1725946491598,22.43,133.69,133.64,9.26]
[1725946491799,22.43,133.69,133.68,3.366]
[1725946492205,22.43,133.7,133.68,3.366]
[1725946492704,25.7956,133.7,133.68,3.366]
[1725946493414,25.7956,133.7,133.67,3.3662]
[1725946495508,3.3654,133.71,133.68,3.366]
[1725946495704,35.0554,133.71,133.68,3.366]
[1725946496011,31.69,133.71,133.68,3.366]
[1725946496514,31.69,133.71,133.69,3.3658]
[1725946497608,35.0553,133.71,133.68,3.3659]
[1725946500413,22.43,133.71,133.66,9.26]
[1725946500619,22.43,133.74,133.7,9.26]
[1725946500810,22.43,133.74,133.63,1.3204]
[1725946500811,13.00092647,133.77,133.71,9.26]
[1725946501011,3.3641,133.76,133.73,3.3646]
[1725946501310,13.01439515,133.77,133.73,3.3646]
[1725946501508,16.37829515,133.77,133.73,3.3646]
[1725946501706,22.43,133.76,133.73,3.3646]
[1725946501906,2.6502,133.8,133.71,9.26]
[1725946502112,2.6502,133.8,133.71,11.9469]
[1725946502113,22.43,133.77,133.71,11.9469]
[1725946502310,9.26,133.78,133.72,9.26]
[1725946502510,12.6234,133.79,133.75,3.3641]
[1725946502716,22.43,133.78,133.75,3.3641]
[1725946503019,31.69,133.78,133.74,3.3644]
[1725946503219,35.0537,133.78,133.74,3.3644]
[1725946503906,35.0537,133.78,133.75,3.3642]
[1725946504313,31.69,133.78,133.75,3.3642]
[1725946507922,35.0533,133.79,133.72,9.26]
[1725946508111,25.7933,133.79,133.73,9.26]
[1725946508320,38.87844667,133.8,133.75,9.26]
[1725946508816,38.87844667,133.8,133.76,3.3639]
[1725946509614,9.26,133.79,133.76,3.3639]
[1725946510820,35.0533,133.79,133.76,3.3639]
[1725946511125,31.69,133.78,133.75,3.3642]
[1725946511816,22.43,133.78,133.76,3.364]
[1725946512121,9.26,133.79,133.74,9.26]
[1725946513018,31.69,133.79,133.74,9.26]
[1725946513518,9.26,133.79,133.71,3.9893]
[1725946513721,9.26,133.79,133.74,9.26]
[1725946513920,3.3631,133.8,133.74,9.26]
[1725946514525,22.43,133.84,133.76,9.26]
[1725946514825,22.43,133.84,133.78,9.26]
[1725946515025,22.43,133.84,133.8,9.26]
[1725946515518,22.43,133.84,133.81,3.3625]
[1725946515720,9.26,133.83,133.71,3.9893]
[1725946515927,31.69,133.83,133.77,9.26]
[1725946516126,31.69,133.83,133.79,3.3631]
[1725946516521,31.69,133.82,133.76,9.26]
[1725946516722,31.69,133.81,133.75,9.26]
[1725946516927,9.26,133.79,133.73,9.26]
[1725946517125,12.6234,133.79,133.73,9.26]
[1725946517830,12.6234,133.79,133.75,3.3641]
[1725946518427,35.0534,133.79,133.75,3.3641]
[1725946520017,31.69,133.79,133.75,3.3641]
[1725946520430,31.69,133.79,133.76,3.364]
[1725946521531,25.7931,133.8,133.76,3.3638]
[1725946522230,25.7931,133.8,133.77,3.3638]
[1725946523118,25.7931,133.8,133.76,3.3639]
[1725946525428,25.7931,133.8,133.77,3.3638]
[1725946528241,3.3633,133.79,133.77,3.3638]
[1725946530436,31.69,133.8,133.76,3.3639]
[1725946531235,3.3634,133.79,133.76,3.3639]
[1725946534038,3.3634,133.79,133.77,3.3638]
[1725946534242,3.3634,133.79,133.73,9.26]
[1725946535242,3.3634,133.79,133.76,3.3638]
[1725946535441,35.0531,133.8,133.76,3.3638]
[1725946536141,3.3633,133.79,133.76,3.3638]
[1725946541145,3.3633,133.79,133.75,3.3641]
[1725946541648,35.37409243,133.8,133.75,3.3641]
[1725946541649,35.0535,133.78,133.75,3.3641]
[1725946543945,31.69,133.78,133.75,3.3641]
[1725946545854,35.0536,133.78,133.75,3.3641]
[1725946546753,3.3638,133.77,133.74,3.3645]
[1725946547547,35.0536,133.78,133.74,3.3645]
[1725946547747,35.0536,133.78,133.75,3.3642]
[1725946550549,3.3639,133.77,133.74,3.3645]
[1725946550749,31.69,133.78,133.74,3.3645]
[1725946552154,35.0536,133.78,133.74,3.3645]
[1725946552749,35.0536,133.78,133.75,3.3642]
[1725946555153,22.43,133.78,133.74,9.26]
[1725946555947,22.43,133.78,133.74,13.00205339]
[1725946556151,22.43,133.78,133.75,3.3641]
[1725946559252,22.43,133.78,133.76,3.364]
[1725946560453,31.69,133.78,133.74,3.3644]
[1725946560653,22.43,133.76,133.71,3.9893]
[1725946561152,22.43,133.76,133.73,3.3646]
[1725946567166,22.43,133.78,133.73,9.26]
[1725946567370,22.43,133.78,133.74,9.26]
[1725946567565,22.43,133.78,133.71,3.9893]
[1725946567872,22.43,133.78,133.76,3.3639]
[1725946568062,22.43,133.78,133.74,9.26]
[1725946569672,22.43,133.78,133.76,3.3639]
[1725946571869,22.43,133.79,133.77,3.3638]
[1725946572671,22.43,133.79,133.75,9.26]
[1725946573275,22.43,133.79,133.74,9.26]
[1725946574175,22.43,133.79,133.76,3.3639]
[1725946574374,25.7933,133.79,133.76,3.3639]
[1725946574778,25.7933,133.79,133.75,3.3642]
[1725946575970,25.7933,133.79,133.76,3.364]
[1725946576969,25.7933,133.79,133.75,3.3641]
[1725946578880,3.3636,133.78,133.75,3.3641]
[1725946579080,22.43,133.79,133.75,3.3641]
[1725946580079,25.7934,133.79,133.75,3.3641]
[1725946583889,25.7934,133.79,133.76,3.364]
[1725946584189,22.43,133.79,133.74,9.26]
[1725946584386,22.43,133.79,133.71,3.9893]
[1725946584688,22.43,133.79,133.75,3.3641]
[1725946584889,25.7934,133.79,133.75,3.3641]
[1725946586890,22.43,133.77,133.75,3.3641]
[1725946587092,22.43,133.77,133.74,3.3644]
[1725946587587,31.69,133.77,133.71,3.9893]
[1725946587786,22.43,133.75,133.71,2.6869]
[1725946587987,22.43,133.75,133.71,1.3528]
[1725946588596,22.43,133.75,133.66,2.7627]
[1725946588789,22.43,133.73,133.71,3.3651]
[1725946590492,31.69,133.74,133.72,3.365]
[1725946591892,31.69,133.74,133.71,3.3652]
[1725946592792,35.0545,133.74,133.71,3.3652]
[1725946593195,22.43,133.72,133.67,1.3392]
[1725946593490,9.26,133.73,133.67,10.5992]
[1725946593491,22.43,133.71,133.67,10.5992]
[1725946593686,26.14325173,133.73,133.67,10.5992]
[1725946593893,22.43,133.73,133.68,9.26]
[1725946594092,113.8096858,133.78,133.71,9.26]
[1725946594297,9.26,133.77,133.73,3.3646]
[1725946594489,12.6239,133.77,133.73,3.3646]
[1725946594893,22.43,133.76,133.73,3.3646]
[1725946595296,25.794,133.76,133.73,3.3646]
[1725946596193,25.794,133.76,133.71,9.26]
[1725946596396,22.43,133.76,133.74,3.3645]
[1725946596596,22.43,133.76,133.71,9.26]
[1725946597299,25.7941,133.76,133.73,3.3647]
[1725946599097,22.43,133.76,133.74,3.3645]
[1725946600896,25.794,133.76,133.74,3.3645]
[1725946601095,25.794,133.76,133.73,3.3647]
[1725946601294,22.43,133.76,133.71,9.26]
[1725946602398,22.43,133.76,133.74,3.3645]
[1725946605902,25.7941,133.76,133.73,3.3647]
[1725946607607,22.43,133.76,133.71,9.26]
[1725946608500,25.7941,133.76,133.71,9.26]
[1725946609400,25.7941,133.76,133.73,3.3646]
[1725946610199,2.558,133.79,133.75,9.26]
[1725946610200,22.43,133.79,133.75,9.26]
[1725946610601,22.43,133.79,133.77,3.3637]
[1725946613603,31.69,133.79,133.76,3.3639]
[1725946613805,31.69,133.79,133.67,11.87581215]
[1725946613806,31.69,133.79,133.73,9.26]
[1725946614405,31.69,133.76,133.7,9.26]
[1725946614712,9.26,133.75,133.7,9.26]
[1725946615501,9.26,133.75,133.73,3.3646]
[1725946615700,9.26,133.75,133.7,9.26]
[1725946615701,35.0543,133.75,133.7,9.26]
[1725946616009,35.0543,133.75,133.69,9.26]
[1725946616407,3.3647,133.74,133.7,3.3655]
[1725946616610,22.43,133.73,133.7,3.3655]
[1725946617001,22.43,133.73,133.71,3.3653]
[1725946617312,22.43,133.73,133.67,14.40371215]
[1725946617313,35.34360161,133.73,133.67,14.40371215]
[1725946618108,35.34360161,133.73,133.7,3.3653]
[1725946620310,31.69,133.73,133.7,3.3653]
[1725946620505,35.0546,133.74,133.7,3.3653]
[1725946620710,3.65629208,133.73,133.7,3.3653]
[1725946622215,35.0546,133.74,133.7,3.3653]
[1725946622611,3.68210384,133.73,133.7,3.3653]
[1725946623824,31.69,133.71,133.67,1.3392]
[1725946624120,31.69,133.72,133.67,1.3392]
[1725946624313,9.26,133.74,133.69,9.26]
[1725946624823,113.82406905,133.77,133.69,9.26]
[1725946624824,9.26,133.75,133.69,9.26]
[1725946625118,22.43,133.74,133.69,9.26]
[1725946626114,22.43,133.74,133.68,3.81527756]
[1725946626115,31.69,133.76,133.7,9.26]
[1725946627316,31.69,133.76,133.73,3.3646]
[1725946630621,22.43,133.76,133.73,3.3646]
[1725946631418,22.43,133.76,133.7,9.26]
[1725946631419,113.82406905,133.77,133.74,3.3645]
[1725946631620,9.26,133.78,133.72,9.26]
[1725946631826,22.43,133.78,133.72,9.26]
[1725946632226,22.43,133.78,133.72,10.5734]
[1725946632621,22.43,133.78,133.75,3.3641]
[1725946633224,38.84347772,133.8,133.74,9.26]
[1725946633419,1.3311,133.83,133.75,9.26]
[1725946633625,31.69,133.81,133.75,12.98615887]
[1725946633825,35.0528,133.81,133.77,3.3636]
[1725946634124,31.69,133.81,133.75,12.98615887]
[1725946634525,31.69,133.81,133.78,3.3633]
[1725946635231,31.69,133.8,133.77,3.3637]
[1725946636019,35.39746076,133.8,133.77,3.3637]
[1725946636223,38.76046076,133.8,133.77,3.3637]
[1725946639635,3.70746076,133.8,133.77,3.3637]
[1725946639838,22.43,133.8,133.77,3.3637]
[1725946640035,25.7931,133.8,133.75,13.08787658]
[1725946640336,29.45223849,133.8,133.75,13.08787658]
[1725946640730,29.45223849,133.8,133.75,3.82787658]
[1725946640934,29.45223849,133.8,133.74,9.26]
[1725946641130,3.3633,133.79,133.73,9.26]
[1725946641327,31.69,133.77,133.72,2.6598]
[1725946641529,31.69,133.77,133.72,1.3134]
[1725946641928,22.43,133.75,133.72,1.3134]
[1725946643531,22.43,133.75,133.71,1.2842]
[1725946643730,22.43,133.75,133.69,9.26]
[1725946644424,22.43,133.75,133.69,12.91398417]
[1725946644632,22.43,133.75,133.73,3.3647]
[1725946645939,22.43,133.75,133.72,3.3649]
[1725946647337,9.26,133.76,133.71,9.26]
[1725946647535,31.71,133.77,133.72,9.26]
[1725946647837,9.26,133.77,133.75,3.3643]
[1725946652537,36.4379,133.78,133.75,3.3643]
[1725946652738,35.0735,133.78,133.76,3.364]
[1725946654741,25.8135,133.78,133.75,3.3642]
[1725946654944,31.71,133.76,133.69,13.06656073]
[1725946655144,9.26,133.76,133.71,9.26]
[1725946655340,31.71,133.77,133.71,9.26]
[1725946655642,31.71,133.77,133.74,3.3643]
[1725946656441,35.0739,133.77,133.74,3.3643]
[1725946659040,3.3641,133.76,133.73,3.3647]
[1725946659637,3.3643,133.75,133.72,3.365]
[1725946659837,25.8143,133.75,133.72,3.365]
[1725946660445,35.0747,133.74,133.68,13.02907248]
[1725946661040,35.0747,133.74,133.7,3.3653]
[1725946668067,35.0747,133.74,133.71,3.3653]
[1725946668250,35.0747,133.74,133.68,13.02907248]
[1725946668651,35.0747,133.74,133.71,3.3652]
[1725946669960,12.6247,133.74,133.71,3.3652]
[1725946670258,3.3649,133.73,133.7,3.3655]
[1725946670557,31.71,133.74,133.7,3.3655]
[1725946670858,35.0747,133.74,133.71,3.3652]
[1725946672666,35.0747,133.74,133.7,3.3654]
[1725946673870,3.3648,133.73,133.69,3.3657]
[1725946674167,31.71,133.72,133.67,2.7422]
[1725946674474,38.7955561,133.72,133.68,3.366]
[1725946676667,3.3653,133.71,133.68,3.366]
[1725946677467,9.26,133.7,133.67,4.7054]
[1725946677869,35.0754,133.71,133.68,3.366]
[1725946678369,31.71,133.71,133.68,3.366]
[1725946680274,22.45,133.71,133.68,3.366]
[1725946682574,31.71,133.76,133.7,9.26]
[1725946682770,22.45,133.76,133.71,9.26]
[1725946682970,22.45,133.76,133.73,3.3648]
[1725946684171,22.45,133.76,133.71,9.26]
[1725946684172,35.0735,133.78,133.74,3.3644]
[1725946684877,31.71,133.78,133.74,3.3644]
[1725946686069,3.364,133.77,133.73,3.3647]
[1725946686267,3.364,133.77,133.71,9.26]
[1725946686268,31.71,133.77,133.71,9.26]
[1725946687081,31.71,133.77,133.74,3.3645]
[1725946687383,9.26,133.78,133.72,9.26]
[1725946688384,31.71,133.78,133.72,9.26]
[1725946688583,35.0737,133.78,133.74,3.3643]
[1725946689691,31.71,133.78,133.75,3.3641]
[1725946690074,9.26,133.78,133.75,3.3641]
[1725946691788,9.26,133.79,133.76,3.364]
[1725946692989,31.71,133.79,133.76,3.364]
[1725946696392,35.0733,133.79,133.76,3.364]
[1725946697687,25.8133,133.79,133.76,3.364]
[1725946697882,24.985,133.86,133.76,9.26]
[1725946698081,9.26,133.84,133.78,9.26]
[1725946698281,23.28366913,133.86,133.79,9.26]
[1725946698494,1.13480161,133.85,133.8,9.26]
[1725946698795,26.22692192,133.86,133.8,9.26]
[1725946698986,22.45,133.86,133.81,9.26]
[1725946700188,22.45,133.86,133.83,3.362]
[1725946701392,29.51048614,133.86,133.82,3.3624]
[1725946707994,29.51048614,133.86,133.83,3.3622]
[1725946708386,22.45,133.86,133.83,3.3622]
[1725946710304,25.8115,133.86,133.83,3.3622]
[1725946712002,3.3615,133.86,133.83,3.3622]
[1725946714705,3.3615,133.86,133.82,12.6224]
[1725946714890,3.3619,133.85,133.75,7.69948265]
[1725946715207,22.45,133.86,133.81,9.26]
[1725946715903,25.8116,133.86,133.82,3.3624]
[1725946716202,29.5542174,133.86,133.82,3.3624]
[1725946719600,25.8116,133.86,133.82,3.3624]
[1725946719802,2.5407,133.9,133.84,9.26]
[1725946720004,24.9907,133.9,133.85,9.26]
[1725946720795,3.3608,133.89,133.86,3.3613]
[1725946722305,25.8106,133.9,133.87,3.3613]
[1725946722508,22.45,133.9,133.87,9.26]
[1725946723110,22.45,133.9,133.86,9.26]
[1725946723905,25.8105,133.9,133.87,3.3611]
[1725946725609,25.8105,133.9,133.88,3.361]
[1725946725610,22.45,133.9,133.88,3.361]
[1725946726404,4.95067367,133.93,133.89,3.3607]
[1725946726405,25.8102,133.92,133.89,3.3607]
[1725946726809,25.8102,133.92,133.87,9.26]
[1725946727010,3.3603,133.91,133.88,3.3609]
[1725946730818,3.3605,133.9,133.87,12.6211]
[1725946731010,3.3605,133.9,133.87,9.26]
[1725946731604,25.8104,133.91,133.88,3.361]
[1725946735312,3.3605,133.9,133.88,3.361]
[1725946738917,25.8104,133.91,133.88,3.361]
[1725946739816,3.3604,133.91,133.88,3.3608]
[1725946744910,3.3605,133.9,133.87,12.6211]
[1725946745911,3.3605,133.9,133.88,3.361]
[1725946746115,3.3603,133.91,133.88,3.361]
[1725946750113,3.3605,133.9,133.87,12.6211]
[1725946752510,3.3605,133.9,133.88,3.361]
[1725946753626,25.8103,133.91,133.88,12.621]
[1725946754716,3.3603,133.91,133.88,12.621]
[1725946758425,3.3606,133.9,133.87,3.361]
[1725946758727,3.3606,133.9,133.87,12.621]
[1725946759325,3.3606,133.9,133.88,3.361]
[1725946759527,3.3604,133.91,133.88,3.361]
[1725946760821,3.3601,133.92,133.89,3.3606]
[1725946761021,3.3601,133.92,133.9,9.26]
[1725946761724,3.3602,133.91,133.9,9.26]
[1725946761924,3.3602,133.91,133.89,3.3606]
[1725946765525,3.3601,133.92,133.89,3.3606]
[1725946767333,3.3601,133.92,133.88,9.26]
[1725946767334,3.3603,133.91,133.88,12.6209]
[1725946775134,3.3605,133.9,133.87,3.3612]
[1725946775636,3.3605,133.9,133.86,9.26]
[1725946776535,3.3608,133.89,133.87,3.3612]
[1725946776733,22.45,133.92,133.87,3.3612]
[1725946777538,3.3606,133.9,133.87,3.3612]
[1725946780634,3.3606,133.9,133.88,9.26]
[1725946785246,3.3606,133.9,133.88,12.621]
[1725946788152,3.3603,133.91,133.88,12.621]
[1725946789549,3.3603,133.91,133.89,3.3607]
[1725946792759,26.16597367,133.93,133.88,3.3609]
[1725946793053,22.45,133.92,133.88,3.3609]
[1725946793852,3.3603,133.91,133.88,3.3609]
[1725946794254,22.45,133.92,133.88,3.3609]
[1725946794458,3.3604,133.91,133.88,3.3609]
[1725946795163,3.3604,133.91,133.88,12.6209]
[1725946800458,3.3604,133.91,133.88,3.3609]
[1725946800662,3.3604,133.91,133.88,12.6209]
[1725946803571,3.3601,133.92,133.89,3.3607]
[1725946804167,3.3603,133.91,133.88,12.6209]
[1725946804870,29.54152618,133.91,133.88,12.6209]
[1725946805274,26.18122618,133.91,133.84,5.81582897]
[1725946805563,26.18122618,133.91,133.86,9.26]
[1725946805769,3.3609,133.89,133.86,12.6214]
[1725946808466,3.361,133.88,133.86,12.6214]
[1725946809571,3.3609,133.89,133.86,12.6214]
[1725946810968,26.18122618,133.91,133.88,9.26]
[1725946811273,22.45,133.91,133.88,9.26]
[1725946811573,1.2835,133.97,133.9,9.26]
[1725946811574,22.45,133.93,133.9,9.26]
[1725946811964,3.3597,133.94,133.91,3.3601]
[1725946812776,3.3598,133.93,133.9,12.6204]
[1725946812977,22.45,133.97,133.92,9.26]
[1725946813169,3.3596,133.94,133.88,3.69152593]
[1725946813371,3.3596,133.94,133.91,9.26]
[1725946814577,3.3596,133.94,133.91,12.6201]
[1725946817980,26.23082498,133.97,133.93,9.26]
[1725946818576,3.3591,133.96,133.93,12.6196]
[1725946822681,25.8089,133.97,133.94,3.3595]
[1725946822882,3.73001692,133.96,133.93,9.26]
[1725946823081,22.45,133.97,133.93,9.26]
[1725946823383,3.3592,133.96,133.93,9.26]
[1725946824180,22.45,133.97,133.94,9.26]
[1725946824674,22.45,133.97,133.95,3.3591]
[1725946826187,3.3588,133.97,133.94,12.6194]
[1725946827981,3.3588,133.97,133.95,3.3592]
[1725946828179,29.54608666,133.98,133.95,3.3592]
[1725946829990,2.608,134.04,133.96,3.359]
[1725946829991,25.8084,133.99,133.96,3.359]
[1725946830292,29.55914693,133.99,133.96,3.359]
[1725946832389,3.3584,133.99,133.96,3.359]
[1725946832592,3.3584,133.99,133.97,3.3587]
[1725946833490,29.54549603,134.0,133.97,12.6187]
[1725946834083,3.3583,133.99,133.96,4.6984]
[1725946835698,3.3585,133.98,133.96,1.3395]
[1725946837083,3.3585,133.98,133.95,3.3591]
[1725946837283,3.73739603,134.0,133.95,3.3591]
[1725946837494,31.71,134.01,133.95,3.3591]
[1725946837887,35.41724421,134.01,133.95,3.3591]
[1725946838090,3.3586,133.98,133.95,3.3591]
[1725946843501,3.3586,133.98,133.96,3.359]
[1725946843699,3.3584,133.99,133.96,3.359]
[1725946845701,3.3584,133.99,133.97,9.26]
[1725946845904,3.3584,133.99,133.97,12.6187]
[1725946846494,25.8081,134.0,133.97,12.6187]
[1725946847805,3.3581,134.0,133.97,12.6187]
[1725946851508,22.45,134.0,133.98,3.3583]
[1725946854014,3.358,134.0,133.98,3.3583]
[1725946855315,3.358,134.0,133.97,12.6187]
[1725946857319,3.358,134.0,133.98,12.6185]
[1725946857320,22.45,134.0,133.98,12.6185]
[1725946858318,3.70724421,134.01,133.98,12.6185]
[1725946858524,22.45,134.03,133.98,12.6185]
[1725946859024,26.19803972,134.03,133.98,12.6185]
[1725946859228,3.358,134.0,133.98,12.6185]
[1725946859722,3.358,134.0,133.98,9.26]
[1725946859922,3.358,134.0,133.97,12.6186]
[1725946861124,3.3583,133.99,133.97,12.6186]
[1725946861829,22.45,134.01,133.96,1.294]
[1725946861830,3.3585,133.98,133.96,1.294]
[1725946862925,3.3585,133.98,133.95,12.619]
[1725946863920,22.45,134.0,133.96,9.26]
[1725946864529,25.8081,134.0,133.97,3.3586]
[1725946864824,22.45,134.0,133.97,9.26]